bitfinex/quotes_BTCUSD_20241223
["timestamp","ask_amount","ask_price","bid_price","bid_amount"]
[1734929726681,0.00954472,95945.0,95941.0,0.208461]
[1734929726974,0.00016085,95945.0,95941.0,0.208461]
[1734929727804,0.00016085,95945.0,95930.0,0.1246458]
[1734929728023,0.00016085,95945.0,95931.0,0.208483]
[1734929728167,0.00145433,95945.0,95936.0,0.208471]
[1734929728379,0.00475067,95944.0,95936.0,0.208471]
[1734929728592,0.00129348,95943.0,95932.0,0.20848]
[1734929728819,0.21293354,95943.0,95929.0,0.208486]
[1734929729027,0.21293354,95943.0,95941.0,0.006]
[1734929729346,0.21293354,95943.0,95929.0,0.208486]
[1734929729498,0.00447554,95943.0,95913.0,0.208521]
[1734929729683,0.1243084,95942.0,95936.0,0.007]
[1734929729888,0.1243084,95942.0,95900.0,0.049]
[1734929729889,0.1,95936.0,95898.0,0.208553]
[1734929730141,0.208521,95914.0,95898.0,0.208553]
[1734929730343,0.00129348,95913.0,95898.0,0.208553]
[1734929730639,0.07713492,95913.0,95890.0,0.1246458]
[1734929730839,0.208538,95906.0,95890.0,0.3332158]
[1734929730965,0.208541,95904.0,95890.0,0.20857]
[1734929731176,0.00129348,95903.0,95890.0,0.20857]
[1734929731375,0.00456398,95903.0,95890.0,0.20873085]
[1734929731570,0.417092,95902.0,95890.0,0.00016085]
[1734929731771,0.00129348,95901.0,95890.0,0.00016085]
[1734929732003,0.20855,95900.0,95890.0,0.00016085]
[1734929732248,0.208554,95898.0,95890.0,0.00016085]
[1734929732379,0.00129348,95897.0,95890.0,0.00016085]
[1734929732740,0.417118,95896.0,95890.0,0.00016085]
[1734929732951,0.417126,95894.0,95890.0,0.00016085]
[1734929733184,0.208567,95892.0,95890.0,0.00016085]
[1734929733385,0.00129348,95891.0,95890.0,0.00216085]
[1734929733822,0.00129348,95891.0,95890.0,0.00016085]
[1734929735129,0.208565,95894.0,95890.0,0.00016085]
[1734929735130,0.00129348,95893.0,95890.0,0.00016085]
[1734929735340,0.00129348,95892.0,95890.0,0.00016085]
[1734929735762,0.15,95909.0,95890.0,0.00016085]
[1734929735972,0.01694626,95907.0,95890.0,0.04866085]
[1734929736190,0.10260188,95918.0,95890.0,0.04866085]
[1734929736389,0.31111288,95918.0,95891.0,0.02069108]
[1734929736606,0.31111288,95918.0,95900.0,0.20855]
[1734929737240,0.51962488,95918.0,95900.0,0.20855]
[1734929737687,0.00129348,95918.0,95905.0,0.208537]
[1734929738331,0.00129348,95918.0,95910.0,0.208526]
[1734929738942,0.00129348,95918.0,95905.0,0.208537]
[1734929740096,0.208513,95917.0,95903.0,0.208543]
[1734929740297,0.00129348,95916.0,95903.0,0.208543]
[1734929740431,0.00129348,95916.0,95905.0,0.001]
[1734929741238,0.00129348,95919.0,95903.0,0.208543]
[1734929741558,0.00129348,95918.0,95903.0,0.210543]
[1734929741954,0.00129348,95918.0,95904.0,0.208541]
[1734929742188,0.00129348,95918.0,95903.0,0.002]
[1734929742337,0.00129348,95919.0,95912.0,0.208523]
[1734929742536,0.00129348,95919.0,95904.0,0.1013084]
[1734929742537,0.00129348,95918.0,95903.0,0.002]
[1734929742743,0.1246458,95920.0,95903.0,0.002]
[1734929742944,0.1246458,95920.0,95906.0,0.208537]
[1734929742945,0.00129348,95919.0,95906.0,0.208537]
[1734929743148,0.208511,95918.0,95905.0,0.002]
[1734929743349,0.208515,95916.0,95905.0,0.002]
[1734929743514,0.1246458,95920.0,95900.0,0.20855]
[1734929743515,0.00129348,95915.0,95900.0,0.20855]
[1734929743983,0.00129348,95915.0,95903.0,0.001]
[1734929744391,0.00129348,95915.0,95900.0,0.20855]
[1734929744583,0.20852,95914.0,95900.0,0.20855]
[1734929744708,0.00129348,95913.0,95900.0,0.20855]
[1734929744909,0.00129348,95913.0,95908.0,0.208532]
[1734929745116,0.00129348,95919.0,95908.0,0.208532]
[1734929745367,0.00129348,95918.0,95908.0,0.208532]
[1734929745586,0.20978948,95925.0,95908.0,0.208532]
[1734929745781,0.2226,95919.0,95890.0,0.00024635]
[1734929745986,0.208563,95894.0,95890.0,0.00024635]
[1734929746186,0.208567,95892.0,95890.0,0.00024635]
[1734929746414,0.00129348,95891.0,95890.0,0.00024635]
[1734929746993,0.00129348,95891.0,95890.0,0.00124635]
[1734929747196,0.00129348,95891.0,95890.0,0.00024635]
[1734929747410,0.00129348,95891.0,95890.0,0.00124635]
[1734929749119,0.00129348,95891.0,95890.0,0.00024635]
[1734929749419,0.00129348,95891.0,95890.0,0.00124635]
[1734929750628,0.00129348,95891.0,95890.0,0.00024635]
[1734929751029,0.00129348,95891.0,95890.0,0.00124635]
[1734929751702,0.01716613,95894.0,95890.0,0.00124635]
[1734929751863,0.00129348,95893.0,95890.0,0.00124635]
[1734929752219,0.00129348,95897.0,95890.0,0.00024635]
[1734929752421,0.00129348,95896.0,95890.0,0.00024635]
[1734929752670,0.208561,95895.0,95890.0,0.00124635]
[1734929752905,0.00129348,95894.0,95890.0,0.00024635]
[1734929753310,0.208565,95893.0,95890.0,0.00224635]
[1734929753462,0.20857,95891.0,95890.0,0.00024635]
[1734929755850,0.20857,95891.0,95879.0,0.00984635]
[1734929755983,0.208574,95889.0,95874.0,0.208606]
[1734929756195,0.00129348,95888.0,95874.0,0.208606]
[1734929756408,0.15,95903.0,95882.0,0.208588]
[1734929756610,0.21001024,95898.0,95882.0,0.208588]
[1734929758095,0.208559,95896.0,95876.0,0.417203]
[1734929758300,0.00129348,95895.0,95886.0,0.208579]
[1734929758690,0.208563,95894.0,95876.0,0.417204]
[1734929758863,0.00129348,95893.0,95876.0,0.494704]
[1734929759030,0.208567,95892.0,95876.0,0.494704]
[1734929759232,0.00129348,95891.0,95876.0,0.286102]
[1734929759434,0.208572,95890.0,95876.0,0.0775]
[1734929759666,0.00129348,95889.0,95876.0,0.0775]
[1734929760267,0.208576,95888.0,95876.0,0.0795]
[1734929760529,0.00129348,95887.0,95876.0,0.0775]
[1734929761616,0.00129348,95889.0,95876.0,0.0775]
[1734929761913,0.00129348,95888.0,95877.0,0.2086]
[1734929762831,0.00129348,95889.0,95877.0,0.2086]
[1734929762971,0.00129348,95888.0,95877.0,0.2086]
[1734929763324,0.00129348,95888.0,95877.0,0.2106]
[1734929763731,0.00129348,95888.0,95877.0,0.002]
[1734929763933,0.01733737,95892.0,95890.0,0.0475]
[1734929764772,0.00145424,95898.0,95890.0,0.0475]
[1734929764969,0.0788,95894.0,95877.0,0.002]
[1734929765176,0.208631,95863.0,95857.0,0.0475]
[1734929765339,0.208643,95858.0,95850.0,0.0782856]
[1734929765550,0.00129348,95857.0,95850.0,8.56e-05]
[1734929765707,0.208639,95859.0,95850.0,8.56e-05]
[1734929765906,0.208644,95857.0,95850.0,8.56e-05]
[1734929766112,0.00129348,95856.0,95850.0,8.56e-05]
[1734929766320,0.208633,95862.0,95850.0,8.56e-05]
[1734929766536,0.208637,95860.0,95852.0,0.00662241]
[1734929766763,0.00129348,95859.0,95852.0,0.00662241]
[1734929766961,0.00129348,95859.0,95852.0,0.00062241]
[1734929767335,0.417282,95858.0,95852.0,0.00062241]
[1734929767483,0.208646,95856.0,95852.0,0.00062241]
[1734929767691,0.417293,95856.0,95852.0,0.00062241]
[1734929767898,0.20865,95854.0,95852.0,0.00062241]
[1734929768139,0.00129348,95853.0,95852.0,0.00062241]
[1734929768541,0.00129348,95853.0,95852.0,0.00662241]
[1734929768780,0.00129348,95853.0,95852.0,0.00062241]
[1734929771751,0.00229348,95853.0,95852.0,0.00062241]
[1734929772162,0.00129348,95853.0,95852.0,0.00062241]
[1734929772362,0.00229348,95853.0,95852.0,0.00062241]
[1734929774704,0.00129348,95853.0,95852.0,0.00062241]
[1734929775233,0.00229348,95853.0,95852.0,0.00062241]
[1734929775800,0.208655,95852.0,95836.0,0.208689]
[1734929776000,0.00129348,95851.0,95836.0,0.208689]
[1734929776636,0.208659,95850.0,95835.0,0.057508]
[1734929776833,0.00129348,95849.0,95835.0,0.057508]
[1734929777422,0.417327,95848.0,95835.0,0.057508]
[1734929777658,0.00129348,95847.0,95835.0,0.057508]
[1734929778884,0.00129348,95847.0,95835.0,0.102708]
[1734929779989,0.00129348,95847.0,95836.0,0.208689]
[1734929780176,0.208659,95850.0,95836.0,0.208689]
[1734929780388,0.00129348,95849.0,95836.0,0.208689]
[1734929781342,0.00129348,95851.0,95836.0,0.208689]
[1734929781545,0.20995248,95850.0,95836.0,0.208689]
[1734929782759,0.00129348,95850.0,95836.0,0.208689]
[1734929782956,0.00129348,95851.0,95842.0,0.208676]
[1734929783206,0.00129348,95850.0,95842.0,0.208676]
[1734929783423,0.00129348,95850.0,95847.0,0.208665]
[1734929783665,0.02226432,95853.0,95847.0,0.41733]
[1734929784313,0.00053582,95853.0,95847.0,0.41733]
[1734929785596,0.00053582,95853.0,95847.0,0.44254254]
[1734929785805,0.00053582,95853.0,95847.0,0.43854254]
[1734929786021,0.00053582,95853.0,95847.0,0.44454254]
[1734929787974,0.00053582,95853.0,95847.0,0.41733]
[1734929788192,0.00053582,95853.0,95847.0,0.42333]
[1734929788617,0.00053582,95853.0,95847.0,0.41733]
[1734929788823,0.00053582,95853.0,95847.0,0.42333]
[1734929789180,0.00070722,95853.0,95847.0,0.41733]
[1734929789362,0.00070722,95853.0,95847.0,0.42233]
[1734929789779,0.00070722,95853.0,95847.0,0.41733]
[1734929791336,0.00070722,95853.0,95847.0,0.42233]
[1734929791522,0.00070722,95853.0,95847.0,0.41733]
[1734929791932,0.00070722,95853.0,95847.0,0.42233]
[1734929801042,0.00070722,95853.0,95847.0,0.41733]
[1734929801455,0.00070722,95853.0,95847.0,0.42333]
[1734929801661,0.00070722,95853.0,95847.0,0.006]
[1734929801872,0.00129348,95852.0,95840.0,0.20868]
[1734929802331,0.208657,95851.0,95847.0,0.002]
[1734929802535,0.00129348,95850.0,95840.0,0.20868]
[1734929803593,0.00129348,95852.0,95840.0,0.20868]
[1734929803799,0.00129348,95851.0,95840.0,0.20868]
[1734929804640,0.00070722,95853.0,95840.0,0.20868]
[1734929805005,0.00129348,95852.0,95840.0,0.20868]
[1734929805213,0.001,95851.0,95840.0,0.20868]
[1734929805422,0.00129348,95850.0,95835.0,8.57e-05]
[1734929805633,0.208683,95839.0,95835.0,8.57e-05]
[1734929805838,0.07669348,95838.0,95835.0,8.57e-05]
[1734929806115,0.07669348,95838.0,95812.0,0.0457]
[1734929806116,0.208687,95837.0,95820.0,0.208724]
[1734929806298,0.00129348,95836.0,95820.0,0.208724]
[1734929806721,0.208692,95835.0,95820.0,0.208724]
[1734929806928,0.208696,95833.0,95820.0,0.208724]
[1734929807139,0.00129348,95832.0,95820.0,0.208724]
[1734929808089,0.208692,95835.0,95820.0,0.215724]
[1734929808331,0.00129348,95834.0,95820.0,0.215724]
[1734929808544,0.208696,95833.0,95820.0,0.208724]
[1734929808719,0.00129348,95832.0,95820.0,0.215724]
[1734929809097,0.00129348,95832.0,95820.0,0.208724]
[1734929809601,0.00129348,95834.0,95820.0,0.208724]
[1734929809814,0.01968923,95835.0,95820.0,0.2259542]
[1734929810028,0.15,95848.0,95820.0,0.2259542]
[1734929810029,0.15,95848.0,95840.0,0.208679]
[1734929810264,0.00129348,95847.0,95840.0,0.208679]
[1734929810732,0.09320384,95855.0,95839.0,0.0764]
[1734929811002,0.31140962,95864.0,95844.0,0.208672]
[1734929811003,0.0020007,95853.0,95844.0,0.208672]
[1734929811212,0.00070722,95853.0,95843.0,0.1246458]
[1734929811426,0.00070722,95853.0,95850.0,0.208657]
[1734929812767,0.00070722,95853.0,95852.0,0.208655]
[1734929813003,0.00070722,95853.0,95852.0,0.3900634]
[1734929813418,0.00070722,95853.0,95852.0,0.41147876]
[1734929814821,0.00070722,95853.0,95852.0,0.41847876]
[1734929814991,0.00070722,95853.0,95852.0,0.41147876]
[1734929815434,0.00070722,95853.0,95852.0,0.42047876]
[1734929818134,0.15,95884.0,95852.0,0.42047876]
[1734929818135,0.14780393,95884.0,95870.0,0.208614]
[1734929818336,0.16742703,95884.0,95870.0,0.208614]
[1734929818741,0.5414834,95883.0,95861.0,0.208633]
[1734929818940,0.231591,95881.0,95861.0,0.208633]
[1734929819140,0.1013084,95880.0,95861.0,0.417268]
[1734929820223,0.15,95879.0,95855.0,0.208647]
[1734929820431,0.2513084,95879.0,95866.0,0.208623]
[1734929821523,0.0793,95882.0,95872.0,0.208611]
[1734929821732,0.0196231,95884.0,95877.0,0.208599]
[1734929822146,0.0001712,95887.0,95877.0,0.208599]
[1734929822355,0.15,95885.0,95877.0,0.208599]
[1734929822555,0.2513084,95885.0,95877.0,0.208599]
[1734929823994,0.2513084,95885.0,95873.0,0.208609]
[1734929824206,0.15,95883.0,95862.0,0.208631]
[1734929824365,0.15,95878.0,95862.0,0.417262]
[1734929825008,0.15,95878.0,95867.0,0.208621]
[1734929825265,0.15,95878.0,95867.0,0.208395]
[1734929825488,0.15,95881.0,95869.0,0.208618]
[1734929827182,0.0001712,95879.0,95869.0,0.208618]
[1734929827666,0.0001712,95879.0,95869.0,0.20690906]
[1734929827899,0.0001712,95879.0,95869.0,0.20590906]
[1734929828170,0.208598,95878.0,95866.0,8.56e-05]
[1734929828412,0.3099064,95878.0,95866.0,8.56e-05]
[1734929828658,0.208611,95873.0,95866.0,8.56e-05]
[1734929829780,0.3099194,95873.0,95866.0,8.56e-05]
[1734929830000,0.3099194,95872.0,95866.0,8.56e-05]
[1734929830246,0.208615,95870.0,95866.0,8.56e-05]
[1734929830459,0.20862,95868.0,95866.0,8.56e-05]
[1734929830888,0.3099284,95868.0,95850.0,0.18410448]
[1734929831099,0.417249,95866.0,95850.0,0.18410448]
[1734929831295,0.208628,95864.0,95850.0,0.18410448]
[1734929831634,0.1013084,95863.0,95844.0,0.01957464]
[1734929831875,0.208643,95858.0,95841.0,0.208678]
[1734929832097,0.1013084,95857.0,95841.0,0.208678]
[1734929832318,0.1013084,95857.0,95846.0,0.208666]
[1734929832953,0.1013084,95857.0,95853.0,0.20865]
[1734929833159,0.15,95873.0,95847.0,0.1246458]
[1734929833328,0.0788,95874.0,95863.0,0.20863]
[1734929833526,0.15,95877.0,95863.0,0.20863]
[1734929834918,0.15,95877.0,95859.0,0.208638]
[1734929835342,0.20861,95873.0,95854.0,0.208649]
[1734929835551,0.22843445,95868.0,95854.0,0.208649]
[1734929835702,0.22843445,95868.0,95849.0,0.208661]
[1734929835911,0.22843445,95868.0,95841.0,0.0461]
[1734929835912,0.082,95865.0,95841.0,0.0461]
[1734929836165,0.1013084,95864.0,95841.0,0.0461]
[1734929836347,0.1013084,95864.0,95850.0,0.208657]
[1734929836987,0.1013084,95864.0,95856.0,0.208646]
[1734929837393,0.1013084,95864.0,95852.0,0.208654]
[1734929838565,0.1013084,95864.0,95852.0,0.417308]
[1734929838987,0.1013084,95864.0,95852.0,0.208654]
[1734929839113,0.1013084,95864.0,95853.0,0.208652]
[1734929841081,0.22843445,95868.0,95853.0,0.208652]
[1734929841082,0.01981245,95868.0,95853.0,0.208652]
[1734929841282,0.01981245,95868.0,95850.0,8.56e-05]
[1734929841709,0.01981245,95868.0,95841.0,0.06981354]
[1734929841909,0.01981245,95868.0,95841.0,0.17112194]
[1734929842135,0.01981245,95868.0,95857.0,0.208643]
[1734929845225,0.01981245,95868.0,95862.0,0.208631]
[1734929845833,0.01981245,95868.0,95857.0,0.208643]
[1734929846668,0.01981245,95868.0,95858.0,0.208641]
[1734929847078,0.01981245,95868.0,95854.0,0.20865]
[1734929848466,0.3099304,95867.0,95851.0,0.208655]
[1734929849105,0.3099304,95867.0,95843.0,0.287172]
[1734929849106,0.1013084,95867.0,95856.0,0.208645]
[1734929849710,0.01981245,95868.0,95864.0,0.208628]
[1734929849711,0.0001607,95868.0,95864.0,0.208628]
[1734929849919,0.0001607,95868.0,95865.0,0.00104311]
[1734929850151,0.0001607,95868.0,95866.0,0.22942762]
[1734929850319,0.0001607,95868.0,95867.0,0.00104296]
[1734929850642,0.0001607,95868.0,95867.0,0.18435136]
[1734929850847,0.0001607,95868.0,95867.0,0.18435125]
[1734929851576,0.0003321,95868.0,95867.0,0.18435125]
[1734929852370,0.0003321,95868.0,95867.0,0.1833084]
[1734929852582,0.0003321,95868.0,95867.0,0.18435135]
[1734929853643,0.0003321,95868.0,95867.0,0.19235135]
[1734929853853,0.0003321,95868.0,95867.0,0.18435135]
[1734929854277,0.0003321,95868.0,95867.0,0.18535135]
[1734929854899,0.0003321,95868.0,95867.0,0.1843084]
[1734929855091,0.0003321,95868.0,95867.0,0.1833084]
[1734929855265,0.0003321,95868.0,95867.0,0.18435135]
[1734929856691,0.0003321,95868.0,95866.0,0.22942762]
[1734929857292,0.0003321,95868.0,95866.0,0.208624]
[1734929858331,0.0003321,95868.0,95866.0,0.216624]
[1734929859604,0.0003321,95868.0,95866.0,0.208624]
[1734929860226,0.0003321,95868.0,95864.0,0.208628]
[1734929860441,0.0003321,95868.0,95866.0,0.008]
[1734929860649,0.0829321,95868.0,95866.0,0.008]
[1734929861263,0.0829321,95868.0,95860.0,0.208636]
[1734929861378,0.11277226,95868.0,95860.0,0.208636]
[1734929861579,0.11277226,95868.0,95866.0,0.004]
[1734929862857,0.11277226,95868.0,95852.0,0.208654]
[1734929863203,0.11277226,95868.0,95866.0,0.004]
[1734929863405,0.11277226,95868.0,95852.0,0.208654]
[1734929863607,0.11277226,95868.0,95862.0,8.56e-05]
[1734929863815,0.11277226,95868.0,95866.0,0.004]
[1734929864457,0.208622,95867.0,95866.0,0.004]
[1734929864639,0.208622,95867.0,95862.0,8.56e-05]
[1734929864846,0.208622,95867.0,95862.0,0.0040856]
[1734929865039,0.11277226,95868.0,95862.0,0.0040856]
[1734929866924,0.417244,95867.0,95862.0,8.56e-05]
[1734929867151,0.15,95864.0,95862.0,8.56e-05]
[1734929867381,0.358631,95863.0,95862.0,8.56e-05]
[1734929868049,0.358631,95863.0,95862.0,0.0030856]
[1734929868382,0.358631,95863.0,95862.0,8.56e-05]
[1734929870768,0.15,95865.0,95841.0,0.02083816]
[1734929870984,0.208633,95862.0,95841.0,0.22951616]
[1734929872057,0.417267,95862.0,95846.0,0.208667]
[1734929873350,0.208633,95862.0,95846.0,0.208667]
[1734929874447,0.15,95865.0,95850.0,0.1246458]
[1734929874653,0.15,95865.0,95860.0,0.208637]
[1734929875086,0.03017226,95868.0,95857.0,0.047]
[1734929875295,0.0003321,95868.0,95858.0,0.12568892]
[1734929875514,0.0003321,95868.0,95866.0,0.208622]
[1734929877077,0.0003321,95868.0,95864.0,0.208627]
[1734929877506,0.0003321,95868.0,95859.0,0.208639]
[1734929878115,0.0003321,95868.0,95866.0,0.005]
[1734929878289,0.0003321,95868.0,95859.0,0.208639]
[1734929878745,0.0003321,95868.0,95864.0,0.005]
[1734929878921,0.0003321,95868.0,95859.0,0.208639]
[1734929880411,0.0003321,95868.0,95866.0,0.001]
[1734929881259,0.0003321,95868.0,95853.0,0.417304]
[1734929881457,0.0003321,95868.0,95866.0,0.001]
[1734929881898,0.0003321,95868.0,95858.0,0.20864]
[1734929882034,0.2089531,95868.0,95854.0,0.20865]
[1734929885249,0.0003321,95868.0,95859.0,0.208639]
[1734929885454,0.0003321,95868.0,95864.0,0.208628]
[1734929885669,0.0003321,95868.0,95864.0,0.417256]
[1734929887301,0.0003321,95868.0,95866.0,0.208624]
[1734929887505,0.0003321,95868.0,95867.0,0.0475]
[1734929888326,0.0003321,95868.0,95866.0,0.208624]
[1734929888531,0.0003321,95868.0,95864.0,0.208628]
[1734929889795,0.0003321,95868.0,95867.0,0.009]
[1734929890230,0.0003321,95868.0,95864.0,0.208628]
[1734929890434,0.0003321,95868.0,95864.0,0.007]
[1734929890847,0.0003321,95868.0,95860.0,0.208636]
[1734929891027,0.0003321,95868.0,95867.0,0.003]
[1734929891237,0.0003321,95868.0,95860.0,0.208636]
[1734929891443,0.0003321,95868.0,95861.0,0.208635]
[1734929891657,0.0003321,95868.0,95864.0,0.003]
[1734929893015,0.0003321,95868.0,95861.0,0.208635]
[1734929893268,0.0003321,95868.0,95867.0,0.004]
[1734929893684,0.0003321,95868.0,95866.0,0.208623]
[1734929894448,0.0003321,95868.0,95867.0,0.007]
[1734929894774,0.0003321,95868.0,95866.0,0.208623]
[1734929895819,0.0003321,95868.0,95863.0,0.20863]
[1734929896019,0.0003321,95868.0,95864.0,0.289628]
[1734929896148,0.0003321,95868.0,95866.0,0.007]
[1734929896776,0.0003321,95868.0,95866.0,0.215623]
[1734929901565,0.0003321,95868.0,95864.0,0.289628]
[1734929901566,0.0003321,95868.0,95865.0,0.208626]
[1734929901767,0.0003321,95868.0,95866.0,0.20966605]
[1734929902321,0.0003321,95868.0,95867.0,0.1013084]
[1734929902529,0.0003321,95868.0,95867.0,0.10235133]
[1734929903698,0.0003321,95868.0,95867.0,0.14745133]
[1734929905618,0.0003321,95868.0,95867.0,0.24097464]
[1734929905836,0.0003321,95868.0,95867.0,0.23993171]
[1734929906794,0.0003321,95868.0,95867.0,0.1464084]
[1734929907015,0.0003321,95868.0,95867.0,0.14745133]
[1734929908375,0.0003321,95868.0,95867.0,0.22395133]
[1734929908498,0.0003321,95868.0,95867.0,0.2229084]
[1734929908922,0.49791081,95895.0,95867.0,0.2229084]
[1734929909125,0.00014539,95879.0,95878.0,0.208598]
[1734929909327,0.00014539,95879.0,95878.0,0.3099064]
[1734929910270,0.00114539,95879.0,95878.0,0.3189064]
[1734929910759,0.00014539,95879.0,95878.0,0.3099064]
[1734929911621,0.00014539,95879.0,95878.0,0.33067462]
[1734929912044,0.00714539,95879.0,95878.0,0.33167462]
[1734929912314,0.00014539,95879.0,95878.0,0.33067462]
[1734929912756,0.00714539,95879.0,95878.0,0.33167462]
[1734929912952,0.00714539,95879.0,95878.0,0.33067462]
[1734929913385,0.01414539,95879.0,95878.0,0.48681215]
[1734929913597,0.00014539,95879.0,95878.0,0.48581215]
[1734929914150,0.00414539,95879.0,95878.0,0.48581215]
[1734929915094,0.00014539,95879.0,95878.0,0.48581215]
[1734929916205,0.00014539,95879.0,95878.0,0.48881215]
[1734929922017,0.00014539,95879.0,95878.0,0.48589775]
[1734929922166,0.00014539,95879.0,95878.0,0.48689775]
[1734929928831,0.00014539,95879.0,95878.0,0.40599775]
[1734929929786,0.49684345,95895.0,95894.0,0.208563]
[1734929930233,0.77364345,95895.0,95878.0,0.04649135]
[1734929930445,0.337396,95879.0,95878.0,8.56e-05]
[1734929930658,0.5867044,95879.0,95878.0,8.56e-05]
[1734929930862,0.15,95872.0,95869.0,0.02064099]
[1734929931101,0.15,95872.0,95869.0,0.02078638]
[1734929931102,0.208615,95870.0,95869.0,0.02078638]
[1734929931328,0.3099234,95870.0,95869.0,0.02078638]
[1734929931533,0.4599234,95870.0,95869.0,0.00014539]
[1734929932659,0.4599234,95870.0,95869.0,0.00214539]
[1734929932996,0.4599234,95870.0,95869.0,0.00014539]
[1734929933303,0.4619234,95870.0,95869.0,0.00014539]
[1734929933650,0.4599234,95870.0,95869.0,0.00014539]
[1734929933855,0.4639234,95870.0,95869.0,0.00014539]
[1734929934600,0.004,95870.0,95869.0,0.00014539]
[1734929935117,0.0803,95871.0,95869.0,0.00023099]
[1734929935518,0.002,95870.0,95869.0,0.00023099]
[1734929935719,0.0803,95871.0,95869.0,0.00023099]
[1734929935921,0.0803,95871.0,95854.0,0.417298]
[1734929936158,0.0803,95871.0,95854.0,0.44055043]
[1734929936936,0.0823,95871.0,95854.0,0.44055043]
[1734929937142,0.0803,95871.0,95854.0,0.44055043]
[1734929937363,0.208615,95870.0,95854.0,0.4174587]
[1734929938015,0.0803,95871.0,95854.0,0.4174587]
[1734929938587,0.208615,95870.0,95854.0,0.2088097]
[1734929938712,0.41723,95870.0,95854.0,0.2088097]
[1734929938939,0.41923,95870.0,95854.0,0.2088097]
[1734929939326,0.208615,95870.0,95854.0,0.2088097]
[1734929940146,0.211615,95870.0,95854.0,0.2088097]
[1734929941685,0.211615,95870.0,95854.0,0.4174597]
[1734929941988,0.003,95870.0,95854.0,0.0001607]
[1734929942586,0.1043084,95870.0,95854.0,0.0001607]
[1734929943133,0.208622,95867.0,95854.0,0.0001607]
[1734929944736,0.1043084,95870.0,95854.0,0.0001607]
[1734929944891,0.15,95878.0,95867.0,0.208621]
[1734929945095,0.15,95876.0,95863.0,0.208629]
[1734929945351,0.002,95867.0,95863.0,0.208629]
[1734929945509,0.15,95876.0,95863.0,0.208629]
[1734929945917,0.003,95870.0,95854.0,0.0771607]
[1734929946265,0.003,95870.0,95862.0,0.208631]
[1734929946502,0.003,95870.0,95863.0,0.005]
[1734929946764,0.358603,95876.0,95862.0,0.208631]
[1734929947386,0.0001712,95870.0,95857.0,0.208644]
[1734929948419,0.0001712,95870.0,95857.0,0.417288]
[1734929948621,0.0001712,95870.0,95857.0,0.208644]
[1734929950328,0.0001712,95870.0,95858.0,0.20864]
[1734929951037,0.0001712,95870.0,95856.0,0.02052679]
[1734929951745,0.0001712,95870.0,95858.0,0.20864]
[1734929953500,0.0001712,95870.0,95854.0,0.2088943]
[1734929953796,0.0766,95869.0,95854.0,0.0002463]
[1734929954867,0.208633,95862.0,95854.0,0.0002463]
[1734929955041,0.0475,95868.0,95854.0,0.0002463]
[1734929955245,0.208643,95858.0,95854.0,0.0002463]
[1734929956647,0.417286,95858.0,95854.0,0.0002463]
[1734929958150,0.417286,95858.0,95854.0,0.0042463]
[1734929958354,0.417286,95858.0,95854.0,0.0002463]
[1734929958695,0.5185944,95858.0,95854.0,0.0012463]
[1734929958895,0.208646,95856.0,95854.0,0.0002463]
[1734929959923,0.1013084,95855.0,95854.0,0.0002463]
[1734929961251,0.1013084,95855.0,95854.0,0.0012463]
[1734929961637,0.1013084,95855.0,95830.0,0.02359209]
[1734929961832,0.10136198,95855.0,95826.0,0.20871]
[1734929962040,0.417301,95854.0,95834.0,0.208692]
[1734929962241,0.208655,95852.0,95834.0,0.208692]
[1734929962443,0.3099634,95852.0,95834.0,0.208692]
[1734929963872,0.00105358,95855.0,95840.0,0.1246458]
[1734929964081,0.00105358,95855.0,95850.0,0.208658]
[1734929965043,5.358e-05,95855.0,95850.0,0.208658]
[1734929965646,5.358e-05,95855.0,95850.0,0.417316]
[1734929966155,5.358e-05,95855.0,95850.0,0.418316]
[1734929966357,5.358e-05,95855.0,95850.0,0.417316]
[1734929966751,5.358e-05,95855.0,95850.0,0.420316]
[1734929966936,5.358e-05,95855.0,95850.0,0.417316]
[1734929967560,5.358e-05,95855.0,95852.0,0.208655]
[1734929967740,5.358e-05,95855.0,95853.0,0.00104315]
[1734929968737,5.358e-05,95855.0,95854.0,0.20865]
[1734929970249,0.00105358,95855.0,95854.0,0.21665]
[1734929971426,5.358e-05,95855.0,95854.0,0.20865]
[1734929971832,0.00105358,95855.0,95854.0,0.2167356]
[1734929972026,0.00105358,95855.0,95854.0,0.2087356]
[1734929972366,0.00105358,95855.0,95854.0,8.56e-05]
[1734929972612,0.00205358,95855.0,95854.0,0.0080856]
[1734929973429,5.358e-05,95855.0,95854.0,8.56e-05]
[1734929974840,0.00105358,95855.0,95854.0,0.0080856]
[1734929983100,5.358e-05,95855.0,95854.0,8.56e-05]
[1734929983500,5.358e-05,95855.0,95854.0,0.0050856]
[1734929983701,0.00022478,95855.0,95854.0,8.56e-05]
[1734929985212,0.00022478,95855.0,95854.0,0.0050856]
[1734929985631,0.00022478,95855.0,95854.0,8.56e-05]
[1734929986412,0.00022478,95855.0,95854.0,0.0050856]
[1734929986945,0.00022478,95855.0,95854.0,8.56e-05]
[1734929987160,0.00022478,95855.0,95854.0,0.0050856]
[1734929988421,0.00022478,95855.0,95854.0,8.56e-05]
[1734929989001,0.00022478,95855.0,95854.0,0.0050856]
[1734929989204,0.00022478,95855.0,95854.0,8.56e-05]
[1734929989674,0.00022478,95855.0,95854.0,0.0050856]
[1734929989820,0.00022478,95855.0,95854.0,8.56e-05]
[1734929990224,0.00022478,95855.0,95854.0,0.0050856]
[1734929990430,0.08092478,95855.0,95854.0,0.0050856]
[1734929991575,0.08092478,95855.0,95854.0,8.56e-05]
[1734929991791,0.08092478,95855.0,95854.0,0.0050856]
[1734929992183,0.08092478,95855.0,95854.0,8.56e-05]
[1734929992994,0.09929709,95855.0,95854.0,0.0010856]
[1734929993354,0.01859709,95855.0,95854.0,8.56e-05]
[1734929993761,0.00022478,95855.0,95854.0,8.56e-05]
[1734929993993,0.00022478,95855.0,95854.0,0.1247856]
[1734929994558,0.00022478,95855.0,95854.0,0.1257856]
[1734929995889,0.00022478,95855.0,95854.0,0.1287856]
[1734929999327,0.00022478,95855.0,95854.0,0.0040856]
[1734930005622,0.08152478,95855.0,95854.0,0.0040856]
[1734930005825,0.33283318,95855.0,95835.0,0.0245866]
[1734930006025,0.208673,95844.0,95836.0,0.0245866]
[1734930006498,0.0807,95843.0,95836.0,0.0245866]
[1734930006695,0.1013084,95842.0,95836.0,0.0245866]
[1734930007029,0.208692,95835.0,95823.0,0.208716]